Cogmind - Beta 16 @@@ ROGUE MODE // 2026.01.16 @ 23:42:16 Player: Legato Result: Destroyed by Enhanced Grunt with Neutron Cannon Performance ------------- Evolutions (4) 2000 Regions Visited (14) 2800 Robots Destroyed (89) 445 Value Destroyed (2457) 2457 Prototype IDs (37) 740 Alien Tech Used (0) 0 Bonus (646) 646 TOTAL SCORE: 9088 Bonus ------- Follower Combat Kills 60 Aligned with FarCom 300 Met Data Miner 300 Friendly Fire -14 Cogmind --------- Core Integrity 0/850 Matter 227/300 Energy 99/100 System Corruption 22% Temperature Cool (0) Movement Core (50) Location -6/Data Miner Parts ------- > --- POWER (1) -------- (None) > --- PROPULSION (4) --- (None) > --- UTILITY (6) ------ (None) > --- WEAPON (4) ------- (None) > --- INVENTORY (5) ---- Light Nuclear Core Light Nuclear Core Micro Nuclear Core Power Sword Peak State ------------ > --- POWER ------------ Antimatter Reactor > --- PROPULSION ------- Advanced Treads Improved Heavy Siege Treads Wheel > --- UTILITY ---------- Improved Cooling System Large Storage Unit Advanced Targeting Computer Core Analyzer Propulsion Shielding Improved Light Armor Plating > --- WEAPON ----------- Heavy Assault Rifle Assault Cannon Shock Bomb Launcher Field Lobotomy Kit > --- INVENTORY -------- Deuterium Engine Deuterium Engine Medium Treads Thermal Generator Improved Heat Sink Improved Heat Sink Medium Matter Pod Medium Matter Pod Particle Charger Tractor Beam Improved Grenade Launcher [Rating: 63] Favorites ----------- Power Light Deuterium Engine Engine Light Deuterium Engine Power Core Fission Core Reactor Antimatter Reactor Propulsion Light Treads Treads Light Treads Leg Improved Aluminum Leg Wheel Wheel Hover Unit Improved Gravmag System Flight Unit VTOL Module Utility Large Storage Unit Device Improved Heat Sink Storage Large Storage Unit Processor Advanced Targeting Computer Hackware System Shield Protection Light Armor Plating Weapon Improved Light Cannon Energy Gun Gatling Laser Energy Cannon Heavy Plasma Cannon Ballistic Gun Coil Gun Ballistic Cannon Improved Light Cannon Launcher Shock Bomb Launcher Special Weapon Field Lobotomy Kit Slashing Weapon Axe Build | -11 -10 -10 -10 -9 -8 -7 -7 -7 -6 -6 -6 -6 -6 -6 ------- Run | Yrd Mat Min Exi Min Mat Fac Was Fac Fac Was Fac Low Low Dat Slots Evolved 8 | . . . . . 4 2 . . 2 . . . . . Power . | . . . . . . . . . . . . . . . Propulsion 2 | . . . . . 1 1 . . . . . . . . Utility 4 | . . . . . 2 1 . . 1 . . . . . Weapon 2 | . . . . . 1 . . . 1 . . . . . Parts Attached 126 | 7 11 1 2 . 28 13 7 2 2 2 46 2 3 . Power 18 | 1 2 1 . . 3 1 2 . . . 8 . . . Engine 10 | 1 2 1 . . 2 1 1 . . . 2 . . . Core 7 | . . . . . 1 . . . . . 6 . . . Reactor 1 | . . . . . . . 1 . . . . . . . Propulsion 35 | 2 2 . 1 . 7 7 2 1 . 1 9 1 2 . Treads 17 | 2 . . . . 5 4 2 1 . 1 2 . . . Leg 6 | . . . . . 1 1 . . . . 3 1 . . Wheel 10 | . 2 . 1 . 1 2 . . . . 3 . 1 . Hover 1 | . . . . . . . . . . . 1 . . . Flight 1 | . . . . . . . . . . . . . 1 . Utility 41 | 2 3 . 1 . 10 2 2 1 1 1 18 . . . Device 19 | 1 . . . . 2 . 2 . 1 1 12 . . . Storage 7 | 1 2 . 1 . 2 . . . . . 1 . . . Processor 8 | . . . . . 3 1 . . . . 4 . . . Hackware 1 | . . . . . . . . . . . 1 . . . Protection 6 | . 1 . . . 3 1 . 1 . . . . . . Artifact . | . . . . . . . . . . . . . . . Weapon 32 | 2 4 . . . 8 3 1 . 1 . 11 1 1 . Energy Gun 8 | . . . . . 1 1 . . . . 6 . . . Energy Cannon 3 | . . . . . 1 1 . . . . 1 . . . Ballistic Gun 9 | 2 1 . . . . . . . 1 . 4 . 1 . Ballistic Cannon 5 | . 2 . . . 2 1 . . . . . . . . Launcher 5 | . 1 . . . 3 . . . . . . 1 . . Special Weapon 1 | . . . . . . . 1 . . . . . . . Impact Weapon . | . . . . . . . . . . . . . . . Slashing Weapon 1 | . . . . . 1 . . . . . . . . . Piercing Weapon . | . . . . . . . . . . . . . . . Special Melee Weapon . | . . . . . . . . . . . . . . . Unidentified Prototypes 2 | . . . . . 1 . . . . . 1 . . . Parts Lost 27 | . . . . . 4 . 3 . . 3 6 . 3 8 Power 1 | . . . . . . . 1 . . . . . . . Propulsion 11 | . . . . . 2 . 1 . . 1 2 . 2 3 Utility 6 | . . . . . . . . . . . 4 . . 2 Weapon 9 | . . . . . 2 . 1 . . 2 . . 1 3 Highest Loss Streak 8 | . . . . . 2 . 3 . . 3 4 . 2 8 To Critical Strikes 1 | . . . . . . . . . . . 1 . . . Average Backups 11 | 4 9 14 15 15 14 14 14 14 10 7 4 5 4 4 Power 1 | . 1 1 1 1 1 1 1 2 2 1 3 3 3 3 Propulsion 1 | 2 3 3 3 3 2 1 2 1 . . . . . . Utility 5 | . 3 8 8 7 7 7 8 8 7 5 1 . . . Weapon 1 | . 1 2 2 2 2 2 1 1 . . . 1 1 1 Tool/Special . | . . . . . . . . . . . . . . . Unused Backups 22 | 1 4 1 1 1 5 3 . . . 2 . 1 . 3 Power 5 | . 1 . . . 1 1 . . . . . . . 2 Propulsion 4 | 1 2 . . . 1 . . . . . . . . . Utility 9 | . . 1 1 1 2 1 . . . 2 . 1 . . Weapon 4 | . 1 . . . 1 1 . . . . . . . 1 Tool/Special . | . . . . . . . . . . . . . . . Average Slot Usage (%) 92 | . 100 100 100 100 98 99 91 89 99 43 75 100 91 78 Engine 6 | . 14 14 14 14 6 7 4 . . . 1 . . . Core 1 | . . . . . 2 . . . . . 3 6 6 6 Treads 14 | . 15 14 14 14 19 23 20 23 20 6 6 . . . Leg 1 | . . . . . 2 3 . . . . 3 2 6 5 Wheel 7 | . 12 14 14 14 4 3 3 . 6 2 5 20 11 12 Device 10 | . 9 . 7 14 6 7 12 13 13 4 18 20 20 19 Storage 7 | . 14 14 14 14 9 7 7 7 6 2 2 . . . Processor 7 | . . . . . 8 11 15 15 13 6 6 13 13 13 Protection 6 | . 4 14 7 . 11 10 1 1 6 4 . . . . Energy Gun 3 | . . . . . . 2 1 . . . 10 23 15 4 Ballistic Gun 3 | . 15 . . . . . . . 5 2 7 . . . Ballistic Cannon 11 | . 12 28 28 28 17 8 7 7 6 2 . . . . Launcher 4 | . . . . . 7 7 10 12 13 5 . 2 6 2 Peak Build Rating 63 | 7 10 11 12 11 29 41 54 54 48 63 56 49 52 47 Average Rating 28 | 5 8 10 10 11 22 36 48 51 47 25 40 48 47 35 On Entrance 27 | . 7 10 11 11 11 29 41 54 45 48 1 48 49 47 Avg Prop Armor Cover (%) 7 | . 10 8 9 10 5 8 13 16 15 9 3 4 9 15 Naked Turns 119 | . . . . . . . . . . 65 49 . . 5 Heaviest Build 62 | 14 34 34 34 32 43 51 57 58 62 62 50 31 33 28 Greatest Support 114 | 40 40 10 10 10 62 66 114 114 10 75 60 36 36 32 Greatest Overweight (x) 6 | . 3 3 3 3 3 4 4 5 6 6 3 . 1 . Average Overweight (x) 1 | . 1 3 3 3 . 1 1 . 6 . . . . . Largest Inventory Capacity 20 | 8 15 15 20 15 20 15 15 15 15 15 5 5 5 5 Average Capacity 11 | 7 10 15 15 15 15 15 15 15 15 9 5 5 5 5 Most Carried 15 | 8 14 15 15 15 15 15 15 15 11 11 5 5 5 4 Average Carried 11 | 4 9 14 14 14 14 14 14 14 10 7 4 4 4 4 Final Capacity 15 | 8 15 15 15 15 15 15 15 15 15 5 5 5 5 5 Final Carried 15 | 8 14 15 15 15 15 15 15 12 10 5 5 5 4 4 Class Distribution -------------------- 33% | Mutant 17% | Skirmisher 16% | Gunner 12% | Tank 11% | Scavenger-Gunner 5% | Scavenger-Skirmisher Dominant Class ---------------- Mutant | -10/Materials Mutant | -10/Mines Mutant | -10/Exiles Mutant | -9/Mines Skirmisher | -8/Materials Gunner | -7/Factory Gunner | -7/Waste Scavenger-Gunner | -7/Factory Scavenger-Gunner | -6/Factory Mutant | -6/Waste Scavenger-Skirmisher | -6/Factory Gunner | -6/Lower Caves Gunner | -6/Lower Caves Mutant | -6/Data Miner Resources | -11 -10 -10 -10 -9 -8 -7 -7 -7 -6 -6 -6 -6 -6 -6 ----------- Run | Yrd Mat Min Exi Min Mat Fac Was Fac Fac Was Fac Low Low Dat Matter Collected 3414 | 282 269 71 . 47 1073 304 194 356 . . 689 25 104 . Remotely . | . . . . . . . . . . . . . . . Salvage Created 2742 | 123 333 20 . . 720 262 . 529 . . 744 . 11 . Parts 150 | 5 23 4 . . 43 19 . 10 . . 44 . 2 . Haulers Intercepted 5 | . 1 . . . 3 . . 1 . . . . . . Recyclers Shooed 3 | . . . . . 2 1 . . . . . . . . Parts Field Recycled . | . . . . . . . . . . . . . . . Retrieved Matter . | . . . . . . . . . . . . . . . Parts Self-Destructed 14 | . . . . . . . . . . . . 11 3 . Prevented 3 | . . . . . . . . . . . . 2 1 . Parts Restored . | . . . . . . . . . . . . . . . Kills | -11 -10 -10 -10 -9 -8 -7 -7 -7 -6 -6 -6 -6 -6 -6 ------- Run | Yrd Mat Min Exi Min Mat Fac Was Fac Fac Was Fac Low Low Dat Combat Hostiles Destroyed 57 | . 10 2 . . 18 2 . 6 . . 16 . 3 . Guns 16 | . 2 . . . . 1 . . . . 12 . 1 . Cannons 22 | . 2 2 . . 13 1 . 1 . . 3 . . . AOE 19 | . 6 . . . 5 . . 5 . . 1 . 2 . Classes Destroyed 15 | 2 6 . . . 3 . . 1 . . 3 . . . Worker 10 | . 1 . . . 2 2 . 2 . . 3 . . . Builder 2 | . . . . . 2 . . . . . . . . . Tunneler 3 | 1 . 1 . . 1 . . . . . . . . . Hauler 5 | . 1 . . . 3 . . 1 . . . . . . Recycler 4 | 1 1 . . . . 2 . . . . . . . . Operator 1 | . 1 . . . . . . . . . . . . . Drone 1 | . . . . . . . . . . . 1 . . . Watcher 6 | . 1 . . . 1 2 . . . . 2 . . . Swarmer 21 | . 6 2 . . 3 . . . . . 7 . 3 . Grunt 21 | . 4 . . . 9 . . 5 . . 3 . . . Brawler 1 | . . . . . . . . . . . 1 . . . Sentry 9 | . . . . . 4 2 . 1 . . 2 . . . Hunter 2 | . . . . . 2 . . . . . . . . . Programmer 3 | . . . . . . . . . . . 3 . . . Compactor 1 | . . . . . . . . 1 . . . . . . Best Kill Streak 5 | 2 3 3 . . 3 3 . 5 . . 4 . 3 . Combat Bots Only 4 | . 3 2 . . 3 1 . 4 . . 3 . 3 . Max Kills in Single Turn 3 | 1 3 1 . . 2 1 . 2 . . 2 . 2 . Gunslinging . | . . . . . . . . . . . . . . . Exploded 3 | . 3 . . . 2 . . 2 . . 1 . 2 . Melee . | . . . . . . . . . . . . . . . Uniques/NPCs Destroyed . | . . . . . . . . . . . . . . . Combat | -11 -10 -10 -10 -9 -8 -7 -7 -7 -6 -6 -6 -6 -6 -6 -------- Run | Yrd Mat Min Exi Min Mat Fac Was Fac Fac Was Fac Low Low Dat Hostile Shots Fired 413 | . 28 11 . . 105 66 3 22 . 5 145 . 6 22 Missed 129 | . 12 1 . . 24 28 1 9 . 1 48 . . 5 Hits 284 | . 16 10 . . 81 38 2 13 . 4 97 . 6 17 Melee 13 | . . . . . . . 2 . . 4 6 . 1 . Projectile 271 | . 16 10 . . 81 38 . 13 . . 91 . 5 17 Critical Strikes 6 | . . . . . 1 . 2 . . 1 2 . . . Part Disruptions 1 | . . . . . . . . . . . . . 1 . Damage Taken 5004 | . 160 82 . . 1142 266 151 236 . 246 1631 . 272 818 Core 985 | . 38 . . . 88 5 . . . 131 235 . 24 464 Absorbed by Shields 93 | . . . . . . . . . . . 93 . . . Redirected to Shielding 60 | . . . . . 44 . . . . 16 . . . . Regen/Repaired (Parts) 56 | . . . . . 56 . . . . . . . . . Core Remaining (%) 91 | 100 . . . 84 84 . . 99 . . . . . . Volleys Fired 202 | 3 27 10 . . 61 20 12 17 . 4 38 . 5 5 Largest 4 | 2 2 2 . . 3 2 3 3 . 4 4 . 4 3 Hottest 268 | 40 66 66 . . 141 113 153 109 . 132 268 . 248 198 Shots Fired 418 | 6 50 20 . . 124 32 19 29 . 9 107 . 12 10 Gun 155 | 6 24 . . . . 8 2 . . 3 99 . 8 5 Cannon 207 | . 22 20 . . 115 24 5 11 . 2 8 . . . Launcher 51 | . 4 . . . 9 . 8 18 . 3 . . 4 5 Special 5 | . . . . . . . 4 . . 1 . . . . Kinetic 259 | 6 46 20 . . 103 21 5 11 . 5 42 . . . Thermal 94 | . . . . . 12 11 2 . . . 58 . 6 5 Explosive 34 | . 4 . . . 8 . 3 10 . . . . 4 5 Electromagnetic 26 | . . . . . 1 . 5 8 . 3 7 . 2 . Robot Hit Streak 20 | 3 16 7 . . 11 20 12 13 . 4 19 . 3 7 Robot Miss Streak 6 | 1 2 2 . . 4 2 1 1 . 2 5 . 3 6 Penetration Max 1 | . . . . . . . . . . . 1 . . . Secondary Targets . | . . . . . . . . . . . . . . . Shots Hit Robots 270 | 4 33 11 . . 81 25 17 19 . 6 61 . 7 6 Core Hits 166 | 4 18 3 . . 44 13 1 20 . 1 48 . 6 8 Critical Kills . | . . . . . . . . . . . . . . . Critical Parts Destroyed . | . . . . . . . . . . . . . . . Critical Strikes 6 | . 1 . . . 4 1 . . . . . . . . Blast 6 | . 1 . . . 4 1 . . . . . . . . Melee Attacks 1 | . . . . . 1 . . . . . . . . . Impact . | . . . . . . . . . . . . . . . Slashing 1 | . . . . . 1 . . . . . . . . . Piercing . | . . . . . . . . . . . . . . . Sneak Attacks . | . . . . . . . . . . . . . . . Combat Hostiles . | . . . . . . . . . . . . . . . Follow-up Attacks . | . . . . . . . . . . . . . . . Damage Inflicted 8445 | 44 689 242 . . 2330 547 821 1087 . 84 1530 . 602 469 Guns 1797 | 44 199 . . . . 168 44 . . 50 1151 . 92 49 Cannons 2928 | . 282 235 . . 1538 379 86 194 . 27 187 . . . Explosions 3701 | . 208 . . . 792 . 691 893 . 7 180 . 510 420 Melee . | . . . . . . . . . . . . . . . Ramming 19 | . . 7 . . . . . . . . 12 . . . Kinetic 3260 | 44 481 235 . . 1388 331 86 194 . 77 424 . . . Thermal 1509 | . . . . . 150 216 44 49 . . 909 . 92 49 Explosive 3160 | . 208 . . . 738 . 682 521 . . 81 . 510 420 Electromagnetic 497 | . . . . . 54 . 9 323 . 7 104 . . . Impact . | . . . . . . . . . . . . . . . Slashing . | . . . . . . . . . . . . . . . Piercing . | . . . . . . . . . . . . . . . Highest Corruption 30 | . . . . . . . 18 18 . 15 30 22 22 22 Average Corruption 18 | . . . . . . . 12 18 . 8 19 22 22 22 Corruption Purged 8 | . . . . . . . . . . . 8 . . . Corruption Blocked . | . . . . . . . . . . . . . . . Effects 103 | . . . . . . . 10 16 . 2 51 8 9 7 Message Errors 28 | . . . . . . . 5 3 . 2 13 2 3 . Matter Fused 17 | . . . . . . . 2 2 . . 8 1 3 1 Heat Flow Errors 20 | . . . . . . . 1 2 . . 13 1 . 3 Energy Discharges 5 | . . . . . . . 1 1 . . . 1 1 1 Parts Rejected 2 | . . . . . . . . 1 . . 1 . . . Parts Fused 3 | . . . . . . . . 1 . . 1 . 1 . Data Loss (minor) 14 | . . . . . . . 1 3 . . 6 2 . 2 Data Loss (major) 2 | . . . . . . . . . . . 2 . . . Misfires 6 | . . . . . . . . 2 . . 4 . . . Alerts 3 | . . . . . . . . . . . 1 1 1 . Misdirections 1 | . . . . . . . . . . . 1 . . . Weapon Failures 2 | . . . . . . . . 1 . . 1 . . . Overload Shots . | . . . . . . . . . . . . . . . Overflow Damage 120 | . 3 2 . . 5 3 . 23 . 11 . . 73 . Projectiles 5 | . . 2 . . . 3 . . . . . . . . Explosions 115 | . 3 . . . 5 . . 23 . 11 . . 73 . Melee . | . . . . . . . . . . . . . . . Knockbacks 25 | . 4 2 . . 12 3 . 4 . . . . . . Impact . | . . . . . . . . . . . . . . . Kinetic 24 | . 4 2 . . 12 3 . 3 . . . . . . Secondary 1 | . . . . . . . . 1 . . . . . . Self-Inflicted Damage 392 | . . 3 . . . . 59 27 . 65 85 . 133 20 Shots 14 | . . . . . . . 4 2 . 3 1 . 3 1 Rammed 6 | . . 1 . . . . . . . . 5 . . . Targets Rammed 6 | . . 1 . . . . . . . . 5 . . . Kicked . | . . . . . . . . . . . . . . . Crushed . | . . . . . . . . . . . . . . . Highest Temperature 476 | . 45 90 . . 109 12 249 243 . . 476 165 191 317 Average Temperature 88 | . 13 37 . . 29 6 87 110 . . 132 100 85 110 Received Heat Transfer 617 | . 48 . . . 306 66 . 117 . . 80 . . . Effects 4 | . . . . . . . . . . . 4 . . . Shutdowns 1 | . . . . . . . . . . . 1 . . . Interference 3 | . . . . . . . . . . . 3 . . . Siege Activations . | . . . . . . . . . . . . . . . Martial Activations . | . . . . . . . . . . . . . . . Shielding Activations . | . . . . . . . . . . . . . . . Robots Disrupted . | . . . . . . . . . . . . . . . Combat Hostiles . | . . . . . . . . . . . . . . . Robots Corrupted . | . . . . . . . . . . . . . . . Combat Hostiles . | . . . . . . . . . . . . . . . Parts Fried . | . . . . . . . . . . . . . . . Impact Corruptions . | . . . . . . . . . . . . . . . Robots Melted . | . . . . . . . . . . . . . . . Combat Hostiles . | . . . . . . . . . . . . . . . Parts Melted 6 | . . . . . . 1 . 2 . . 3 . . . Heat Transferred 2558 | . . . . . 222 475 100 100 . . 1366 . 140 155 Parts Sabotaged . | . . . . . . . . . . . . . . . Parts Stolen 1 | . . . . . . . . . . . . . 1 . Parts Stripped . | . . . . . . . . . . . . . . . Power Chain Reactions 1 | . . . . . . . . 1 . . . . . . Alert | -11 -10 -10 -10 -9 -8 -7 -7 -7 -6 -6 -6 -6 -6 -6 ------- Run | Yrd Mat Min Exi Min Mat Fac Was Fac Fac Was Fac Low Low Dat Maximum Alert Level 1 | . . . . . 1 . . . . . 1 . . . Low Security (%) 96 | 100 100 100 . 100 95 100 100 100 100 100 89 . . . Level 1 3 | . . . . . 4 . . . . . 10 . . . Level 2 . | . . . . . . . . . . . . . . . Level 3 . | . . . . . . . . . . . . . . . Level 4 . | . . . . . . . . . . . . . . . Level 5 . | . . . . . . . . . . . . . . . High Security . | . . . . . . . . . . . . . . . Max Security . | . . . . . . . . . . . . . . . Peak Influence 246 | 10 145 49 . . 246 107 10 145 60 14 221 . . . Initial 107 | . . 49 . . . 107 . . 60 14 . . . . Average 53 | . 55 13 . . 55 20 . 41 50 2 115 . . . Influence Increases 2180 | 10 371 60 . . 698 95 11 245 . . 605 . 85 . Destroy 0b10 Robot/C 1140 | . 200 40 . . 360 40 . 120 . . 320 . 60 . Destroy 0b10 Robot/NC 165 | 10 25 5 . . 50 30 . 20 . . 25 . . . Destroy Leader 302 | . 54 . . . 108 24 . 22 . . 84 . 10 . Allied During Kill 10 | . . . . . . . . 10 . . . . . . Successful Hack 50 | . 13 . . . 23 . . . . . 14 . . . Select Force Hacks 30 | . 30 . . . . . . . . . . . . . Disable Machine 165 | . 15 . . . 75 . . 15 . . 60 . . . Destroy Structure 213 | . 34 . . . 67 1 11 58 . . 42 . . . Partial Spotted 15 | . . . . . . . . . . . 15 . . . Lose Combat Pursuer 90 | . . 15 . . 15 . . . . . 45 . 15 . Influence Decreases 2180 | 10 242 189 . . 461 332 11 120 85 40 461 144 60 25 Entered New Map 380 | . . 80 . . . 130 . . 65 26 . 54 . 25 Time Decay 1660 | 10 242 109 . . 381 202 11 120 20 14 401 90 60 . Lost Part 86 | . . . . . 36 . . . . . 50 . . . Lost Ally 10 | . . . . . . . . . . . 10 . . . Purge Threat 44 | . . . . . 44 . . . . . . . . . Squads Dispatched 16 | . 3 . . . 4 1 . 1 . . 7 . . . Investigation 7 | . 2 . . . 2 . . . . . 3 . . . Extermination 5 | . . . . . . 1 . 1 . . 3 . . . Reinforcement 4 | . 1 . . . 2 . . . . . 1 . . . Assault . | . . . . . . . . . . . . . . . Garrison . | . . . . . . . . . . . . . . . Intercept . | . . . . . . . . . . . . . . . Searches Triggered . | . . . . . . . . . . . . . . . Construction Impeded 1 | . . . . . 1 . . . . . . . . . Haulers Reinforced . | . . . . . . . . . . . . . . . Active Scanning Responses . | . . . . . . . . . . . . . . . Cargo Convoy Interrupts . | . . . . . . . . . . . . . . . Stealth | -11 -10 -10 -10 -9 -8 -7 -7 -7 -6 -6 -6 -6 -6 -6 --------- Run | Yrd Mat Min Exi Min Mat Fac Was Fac Fac Was Fac Low Low Dat Distress Signals 8 | . . . . . 4 1 . 1 . . 2 . . . Communications Jammed . | . . . . . . . . . . . . . . . Distress Signals . | . . . . . . . . . . . . . . . Times Spotted 96 | . 14 3 . . 24 6 5 7 . 6 22 . 5 4 Peak Tracking Total 6 | . 3 3 . . 4 2 4 4 . 6 5 . 4 4 Tactical Retreats 6 | . . 1 . . 1 . . . . . 3 . 1 . Traps | -11 -10 -10 -10 -9 -8 -7 -7 -7 -6 -6 -6 -6 -6 -6 ------- Run | Yrd Mat Min Exi Min Mat Fac Was Fac Fac Was Fac Low Low Dat Traps Triggered 11 | . 1 . . . 2 2 . 1 1 . 3 . 1 . Indirectly . | . . . . . . . . . . . . . . . Trap Hack Attempts . | . . . . . . . . . . . . . . . Triggered . | . . . . . . . . . . . . . . . Disarmed . | . . . . . . . . . . . . . . . Reprogrammed . | . . . . . . . . . . . . . . . Reused . | . . . . . . . . . . . . . . . Traps Extracted . | . . . . . . . . . . . . . . . Installed . | . . . . . . . . . . . . . . . Triggered . | . . . . . . . . . . . . . . . Machines | -11 -10 -10 -10 -9 -8 -7 -7 -7 -6 -6 -6 -6 -6 -6 ---------- Run | Yrd Mat Min Exi Min Mat Fac Was Fac Fac Was Fac Low Low Dat Machines Disabled 12 | . 1 . . . 5 . . 1 . . 4 . . 1 Max in Single Turn 3 | . 1 . . . 1 . . 1 . . 3 . . 1 Garrison Access 1 | . . . . . 1 . . . . . . . . . Machines Repaired . | . . . . . . . . . . . . . . . Machines Dismantled . | . . . . . . . . . . . . . . . Machines Sabotaged . | . . . . . . . . . . . . . . . Overloaded Fab Kills . | . . . . . . . . . . . . . . . Hacking | -11 -10 -10 -10 -9 -8 -7 -7 -7 -6 -6 -6 -6 -6 -6 --------- Run | Yrd Mat Min Exi Min Mat Fac Was Fac Fac Was Fac Low Low Dat Machines Accessed 29 | . 5 1 1 . 11 3 . 1 . . 3 . . 4 Terminals 16 | . 4 1 . . 7 1 . 1 . . 2 . . . Fabricators . | . . . . . . . . . . . . . . . Repair Stations 2 | . . . . . 1 1 . . . . . . . . Recycling Units 2 | . 1 . . . 1 . . . . . . . . . Scanalyzers 2 | . . . . . 1 . . . . . 1 . . . Garrison Access 2 | . . . . . 1 1 . . . . . . . . Total Hacks 88 | . 11 2 1 . 30 4 . 2 . . 7 . . 31 Successful 49 | . 6 . 1 . 10 . . . . . 1 . . 31 Failed 39 | . 5 2 . . 20 4 . 2 . . 6 . . . Catastrophic 9 | . 1 . . . 3 2 . 1 . . 2 . . . Database Lockouts . | . . . . . . . . . . . . . . . Manual 18 | . 5 1 1 . 8 . . 2 . . 1 . . . Terminals 38 | . 8 2 . . 20 2 . 2 . . 4 . . . Fabricators . | . . . . . . . . . . . . . . . Repair Stations 4 | . . . . . 3 1 . . . . . . . . Recycling Units 5 | . 3 . . . 2 . . . . . . . . . Scanalyzers 7 | . . . . . 4 . . . . . 3 . . . Garrison Access 2 | . . . . . 1 1 . . . . . . . . Terminal Hacks 40 | . 2 . 1 . 5 . . . . . 1 . . 31 Record 11 | . . . . . . . . . . . . . . 11 Part Schematic 12 | . . . . . . . . . . . . . . 12 Robot Schematic 5 | . . . . . . . . . . . . . . 5 Prototype ID Bank 4 | . 1 . . . . . . . . . . . . 3 Branch Access Points 1 | . . . . . 1 . . . . . . . . . Terminal Index 1 | . . . . . 1 . . . . . . . . . Alert Level 1 | . . . . . 1 . . . . . . . . . Unreport Threat 2 | . . . . . 2 . . . . . . . . . Locate Traps 2 | . 1 . . . . . . . . . 1 . . . Proto ID Catalog 1 | . . . 1 . . . . . . . . . . . Fabricator Hacks . | . . . . . . . . . . . . . . . Repair Station Hacks 2 | . . . . . 2 . . . . . . . . . Scan Component 1 | . . . . . 1 . . . . . . . . . Repair 1 | . . . . . 1 . . . . . . . . . Recycling Unit Hacks 1 | . 1 . . . . . . . . . . . . . Report Inventory 1 | . 1 . . . . . . . . . . . . . Scanalyzer 2 | . . . . . 2 . . . . . . . . . Retrieve Study 2 | . . . . . 2 . . . . . . . . . Garrison Access Hacks 1 | . . . . . 1 . . . . . . . . . Seal Access 1 | . . . . . 1 . . . . . . . . . Unauthorized Hacks 3 | . 3 . . . . . . . . . . . . . Terminals 2 | . 2 . . . . . . . . . . . . . Track 1 | . 1 . . . . . . . . . . . . . Botnet 1 | . 1 . . . . . . . . . . . . . Fabricators . | . . . . . . . . . . . . . . . Repair Stations . | . . . . . . . . . . . . . . . Recycling Units 1 | . 1 . . . . . . . . . . . . . Tunnel 1 | . 1 . . . . . . . . . . . . . Scanalyzers . | . . . . . . . . . . . . . . . Garrison Access . | . . . . . . . . . . . . . . . Data Cores Recovered . | . . . . . . . . . . . . . . . Used . | . . . . . . . . . . . . . . . Hacking Detections 20 | . 3 1 . . 9 3 . 1 . . 3 . . . Full Trace Events 6 | . . . . . 4 . . . . . 2 . . . Feedback Events . | . . . . . . . . . . . . . . . Feedback Blocked . | . . . . . . . . . . . . . . . Robot Schematics Acquired 5 | . . . . . . . . . . . . . . 5 Robots Built . | . . . . . . . . . . . . . . . Authchips . | . . . . . . . . . . . . . . . Time . | . . . . . . . . . . . . . . . Total Robot Build Rating . | . . . . . . . . . . . . . . . Part Schematics Acquired 12 | . . . . . . . . . . . . . . 12 Parts Built . | . . . . . . . . . . . . . . . Authchips . | . . . . . . . . . . . . . . . Time . | . . . . . . . . . . . . . . . Total Part Build Rating . | . . . . . . . . . . . . . . . Part Studies Acquired 2 | . . . . . 2 . . . . . . . . . Parts Repaired 1 | . . . . . 1 . . . . . . . . . Time 26 | . . . . . 26 . . . . . . . . . Parts Recycled . | . . . . . . . . . . . . . . . Recycled Matter . | . . . . . . . . . . . . . . . Retrieved Matter . | . . . . . . . . . . . . . . . Retrieved Components . | . . . . . . . . . . . . . . . Parts Scanalyzed . | . . . . . . . . . . . . . . . Part Schematics Acquired . | . . . . . . . . . . . . . . . Parts Damaged . | . . . . . . . . . . . . . . . Bothacking | -11 -10 -10 -10 -9 -8 -7 -7 -7 -6 -6 -6 -6 -6 -6 ------------ Run | Yrd Mat Min Exi Min Mat Fac Was Fac Fac Was Fac Low Low Dat Used RIF Installer . | . . . . . . . . . . . . . . . Robots Hacked . | . . . . . . . . . . . . . . . Non-combat . | . . . . . . . . . . . . . . . Combat . | . . . . . . . . . . . . . . . Robot Hacks Applied . | . . . . . . . . . . . . . . . Relay Couplers Released . | . . . . . . . . . . . . . . . Fabnet Peak Effective % . | . . . . . . . . . . . . . . . Robots Rewired . | . . . . . . . . . . . . . . . Allies Hacked . | . . . . . . . . . . . . . . . Hacks Repelled . | . . . . . . . . . . . . . . . Allies | -11 -10 -10 -10 -9 -8 -7 -7 -7 -6 -6 -6 -6 -6 -6 -------- Run | Yrd Mat Min Exi Min Mat Fac Was Fac Fac Was Fac Low Low Dat Total Allies 4 | . . . . . . . 4 . . . . . . . Largest Group 3 | . . . . . . . 3 2 . . . . . . Highest-Rated Group 423 | . . . . . . . 423 282 . . . . . . Highest-Rated Ally 141 | . . . . . . . 141 141 . . . . . . Total Orders . | . . . . . . . . . . . . . . . Ally Attacks 38 | . . . . . . . 38 . . . . . . . Total Damage 1724 | . . . . . . . 1724 . . . . . . . Kills 3 | . . . . . . . 2 1 . . . . . . Allies Corrupted . | . . . . . . . . . . . . . . . Allies Melted . | . . . . . . . . . . . . . . . Field Lobotomies 4 | . . . . . . . 4 . . . . . . . Intel | -11 -10 -10 -10 -9 -8 -7 -7 -7 -6 -6 -6 -6 -6 -6 ------- Run | Yrd Mat Min Exi Min Mat Fac Was Fac Fac Was Fac Low Low Dat Active Infowar (turns) 1599 | 42 500 . 153 62 25 . . . . . 217 248 210 142 Terrain 817 | . . . . . . . . . . . 217 248 210 142 Seismic 782 | 42 500 . 153 62 25 . . . . . . . . . Robot Analysis Total . | . . . . . . . . . . . . . . . Derelict Logs Recovered 2 | . . 1 . . . . . . . . . 1 . . Drone Launches 6 | . . . . . . . . . . . 6 . . . Drone Recoveries 4 | . . . . . . . . . . . 4 . . . Exploration | -11 -10 -10 -10 -9 -8 -7 -7 -7 -6 -6 -6 -6 -6 -6 ------------- Run | Yrd Mat Min Exi Min Mat Fac Was Fac Fac Was Fac Low Low Dat Turns Passed 6636 | 126 776 391 306 62 1682 750 309 322 55 125 1127 248 210 147 Spaces Moved 4290 | 64 479 281 237 49 911 412 160 172 32 117 731 304 200 141 Core 233 | 2 . . . . . . . . . 96 124 . . 11 Treads 1587 | 62 41 . . . 663 258 112 155 . 17 279 . . . Legs 18 | . . . . . . . . . . . 18 . . . Wheels 2407 | . 438 281 237 49 248 154 48 17 32 4 265 304 200 130 Hover 45 | . . . . . . . . . . . 45 . . . Flight . | . . . . . . . . . . . . . . . Fastest Speed 50 | 50 95 125 125 125 95 140 140 150 170 50 50 80 80 50 Average Speed 124 | 156 110 125 125 125 147 148 147 150 170 72 114 80 91 86 Slowest Speed 330 | 160 160 125 125 125 240 225 160 155 170 180 330 80 95 90 Overloaded Moves . | . . . . . . . . . . . . . . . Propulsion Burnouts . | . . . . . . . . . . . . . . . Robots Hopped . | . . . . . . . . . . . . . . . Potential Cave-ins . | . . . . . . . . . . . . . . . Cave-ins Triggered . | . . . . . . . . . . . . . . . Time Travels 1 | . . . 1 . . . . . . . . . . . Exploration Rate (%) 41 | 4 70 66 62 21 58 13 78 5 2 66 19 52 32 78 Regions Visited 14 Branch Regions 6 Pre-discovered Areas 4 | . 1 2 . . . . . . . . . . . 1 Known Exits Taken 1 | . . . . . . . . . . . . 1 . . Unknown Exits Taken 9 | 1 1 1 1 1 1 . . 1 . . 1 . 1 . Scrap Searched 4 | . . 1 . 1 . . . . . . . 2 . . Spaces Dug 44 | . . . . . 9 . . 25 . . . . 10 . Terrain Destroyed 332 | . 36 . . . 65 . 13 79 . . 40 . 53 46 Melee 1 | . . . . . 1 . . . . . . . . . Projectile 15 | . 1 . . . 8 . 1 1 . . 4 . . . AOE 316 | . 35 . . . 56 . 12 78 . . 36 . 53 46 Terrain Rammed . | . . . . . . . . . . . . . . . Walls Destroyed . | . . . . . . . . . . . . . . . Machines Disabled . | . . . . . . . . . . . . . . . Actions | -11 -10 -10 -10 -9 -8 -7 -7 -7 -6 -6 -6 -6 -6 -6 --------- Run | Yrd Mat Min Exi Min Mat Fac Was Fac Fac Was Fac Low Low Dat Total 5213 | 83 681 301 246 50 1130 523 208 210 34 146 925 308 214 154 Wait 416 | . 138 5 1 . 62 50 28 14 . 17 93 . 6 2 Move 4278 | 63 478 280 236 48 910 412 159 171 32 116 730 303 199 141 Hop . | . . . . . . . . . . . . . . . Pick Up 64 | 9 12 2 2 1 22 9 . . . 1 5 1 . . Fast Attach 61 | 7 . . . . 10 2 3 . . 2 31 1 2 3 Attach 28 | . . . 1 . 10 2 2 4 2 1 5 . 1 . Detach 4 | . . . . . 2 . . 2 . . . . . . Swap 77 | . 15 1 4 . 22 13 4 1 . 2 13 1 1 . Drop 74 | 1 11 2 2 1 28 15 . 1 . 3 5 2 . 3 Fire 202 | 3 27 10 . . 61 20 12 17 . 4 38 . 5 5 Melee 1 | . . . . . 1 . . . . . . . . . Ram 6 | . . 1 . . . . . . . . 5 . . . Kick . | . . . . . . . . . . . . . . . Crush . | . . . . . . . . . . . . . . . Escape Stasis . | . . . . . . . . . . . . . . . Rewire 2 | . . . . . 2 . . . . . . . . . Trap . | . . . . . . . . . . . . . . . Miscellaneous . | . . . . . . . . . . . . . . . Route ------- -11/Scrapyard -10/Materials (discovered 2 exits: [*Mat] / *Min) -10/Mines (discovered 4 exits: [*Mat x2] / *Exi / [*Sub]) -10/Exiles -9/Mines -8/Materials -7/Factory -7/Waste -7/Factory -6/Factory -6/Waste -6/Factory -6/Lower Caves -6/Lower Caves -6/Data Miner (discovered 1 exit: [*Pro]) History --------- Turn | Location | Event 13 | -11/Scrapyard | Discovered new exit (range 16) 127 | -11/Scrapyard | Entered Materials 187 | -10/Materials | Discovered new exit (range 6) 312 | -10/Materials | Build established: Mutant 584 | -10/Materials | Discovered new exit (range 11) 903 | -10/Materials | Entered Mines 932 | -10/Mines | Learned location of Storage (-9) 981 | -10/Mines | Discovered new exit (range 7) 1065 | -10/Mines | Discovered new exit (range 6) 1157 | -10/Mines | Found a damaged Exp. Sensor Array with a note attached 1160 | -10/Mines | Found Prototype Device 1175 | -10/Mines | Learned location of Zion (-7) 1234 | -10/Mines | Discovered new exit (range 6) 1287 | -10/Mines | Deemed a non-threat by the Exiles lab entrance 1289 | -10/Mines | Discovered new exit (range 5) 1294 | -10/Mines | Entered Exiles 1327 | -10/Exiles | Met 8R-AWN 1348 | -10/Exiles | Met EX-HEX 1382 | -10/Exiles | Met EX-BIN 1399 | -10/Exiles | Aligned with FarCom system 1400 | -10/Exiles | Given EX-Vault access code 1430 | -10/Exiles | Opened EX-Vault 1442 | -10/Exiles | Found Chronowheel 1443 | -10/Exiles | Activated Chronowheel 1443 | -10/Exiles | Spacetime reconverged on an earlier point 1448 | -10/Exiles | Found Field Lobotomy Kit 1474 | -10/Exiles | Warned to stay clear of 0b10 Research branches 1514 | -10/Exiles | Met EX-DEC 1589 | -10/Exiles | Discovered new exit (range 11) 1600 | -10/Exiles | Left Exiles lab with Field Lobotomy Kit 1600 | -10/Exiles | Entered Mines 1603 | -9/Mines | Met a Derelict bent on vengeance 1657 | -9/Mines | Discovered new exit (range 5) 1662 | -9/Mines | Entered Materials 1662 | -8/Materials | Evolved 4 slots: Propulsion x1, Utility x2, Weapon x1 1951 | -8/Materials | Build established: Tank 2348 | -8/Materials | Repaired Lgt. Armor Plating 2654 | -8/Materials | Discovered new exit (range 12) 2875 | -8/Materials | Build established: Skirmisher 3344 | -8/Materials | Entered Factory 3344 | -7/Factory | Evolved 2 slots: Propulsion x1, Utility x1 3657 | -7/Factory | Build established: Tank 4094 | -7/Factory | Sucked down chute 4094 | -7/Factory | Entered Waste 4109 | -7/Waste | EMP discharged 4137 | -7/Waste | Spotted C-40 Crusher 4141 | -7/Waste | Spotted C-40 Crusher 4154 | -7/Waste | Crushed by Compactor (1 part destroyed, 2 dropped) 4157 | -7/Waste | Spotted C-40 Crusher 4163 | -7/Waste | Spotted C-40 Crusher 4166 | -7/Waste | Crushed by Compactor (1 part destroyed, 1 dropped) 4168 | -7/Waste | Assimilated C-40 Crusher with FLK Orb 4171 | -7/Waste | Assimilated C-40 Crusher with FLK Orb 4195 | -7/Waste | Assimilated C-40 Crusher with FLK Orb 4197 | -7/Waste | Lost 3 parts (1p1n1w) 4197 | -7/Waste | Spotted C-40 Crusher 4203 | -7/Waste | Assimilated C-40 Crusher with FLK Orb 4209 | -7/Waste | EMP discharged 4209 | -7/Waste | System corruption reached 10% 4215 | -7/Waste | Allies destroyed C-40 Crusher 4234 | -7/Waste | Spotted C-40 Crusher 4263 | -7/Waste | Allies destroyed C-40 Crusher 4309 | -7/Waste | EMP discharged 4372 | -7/Waste | Discovered new exit (range 11) 4403 | -7/Waste | Entered Factory 4403 | -7/Factory | Accompanied by 2 allies 4515 | -7/Factory | Destroyed Crusher 4c 4599 | -7/Factory | Allied Derelicts emerged from ambush trap array 4707 | -7/Factory | Discovered new exit (range 12) 4725 | -7/Factory | Entered another Factory area 4725 | -6/Factory | Evolved 2 slots: Utility x1, Weapon x1 4780 | -6/Factory | Sucked down chute 4780 | -6/Factory | Entered Waste 4795 | -6/Waste | EMP discharged 4818 | -6/Waste | Spotted C-40 Crusher 4826 | -6/Waste | Spotted C-40 Crusher 4830 | -6/Waste | Crushed by Compactor (0 parts destroyed, 1 dropped) 4833 | -6/Waste | Spotted C-40 Crusher 4833 | -6/Waste | Crushed by Compactor (1 part destroyed, 1 dropped) 4836 | -6/Waste | Crushed by Compactor (1 part destroyed, 1 dropped) 4838 | -6/Waste | Released all parts (8) 4838 | -6/Waste | Spotted C-40 Crusher 4867 | -6/Waste | Lost 3 parts (1n2w) 4878 | -6/Waste | Spotted C-40 Crusher 4888 | -6/Waste | Spotted C-40 Crusher 4895 | -6/Waste | EMP discharged 4895 | -6/Waste | System corruption reached 10% 4897 | -6/Waste | Discovered new exit (range 15) 4905 | -6/Waste | Entered Factory 5124 | -6/Factory | Build established: Mutant 5547 | -6/Factory | Released all parts (11) 5548 | -6/Factory | System corruption reached 30% 5578 | -6/Factory | Lost 4 parts (2n2u) 5963 | -6/Factory | Build established: Scavenger-Skirmisher 6019 | -6/Factory | Discovered new exit (range 14) 6032 | -6/Factory | Entered Lower Caves 6146 | -6/Lower Caves | Encountered a Warlord checkpoint 6196 | -6/Lower Caves | Identified exit to Lower Caves 6280 | -6/Lower Caves | Entered another Lower Caves area 6450 | -6/Lower Caves | Spotted B-75 Beast 6472 | -6/Lower Caves | Build established: Gunner 6475 | -6/Lower Caves | Discovered new exit (range 9) 6490 | -6/Lower Caves | Entered Data Miner 6490 | -6/Data Miner | Discovered new exit (range 6) 6509 | -6/Data Miner | Met Data Miner 6529 | -6/Data Miner | Learned location of Section 7 (-2) 6529 | -6/Data Miner | Acquired the access code to Warlord's prototype stash 6549 | -6/Data Miner | Received God Mode back door access code from Data Miner 6609 | -6/Data Miner | Data Conduit disabled 6628 | -6/Data Miner | Core integrity fell below 50% 6632 | -6/Data Miner | Released all parts (6) 6635 | -6/Data Miner | Core integrity fell below 20% 6637 | -6/Data Miner | Destroyed by Enhanced Grunt with Neutron Cannon Last Messages --------------- 06608_ System corrupted: Heat flow error (+291). 06609_ Data Miner disappears through a trap door. 06609_ Data Conduit disabled. 06614_ Imp. Spread Laser destroyed. 06624_ Arm. Leg destroyed. 06625_ Imp. Heat Sink destroyed. 06629_ System corrupted: Energy discharge (-96). 06629_ Gatling Laser destroyed. 06629_ Wheel destroyed. 06629_ Weight Redist. System destroyed. 06631_ VTOL Module destroyed. 06631_ Lrn. Missile Launcher destroyed. 06632_ Released Com. Wheel. 06632_ Released System Shield. 06632_ Released Target Analyzer. 06632_ Released Adv. Terrain Scanner. 06632_ Released Imp. Targeting Computer. 06632_ Released Fission Core. 06633_ The unstable cave ceiling collapses. 06636_ Enhanced Grunt destroyed. Map ----- +----------------------------------------------------+ | | | | | | | | | | | | | | | | | | | | | | | | | | | | | | | ????????#??????????????????#??????##???????????? | | ??????????#??????#?######???##?????????#???????? | | ???????????#???##### #####??????????????????? | | ???????????????## #??????#????????????? | | ?????????#?????# #???????####????????? | | ???############# ###???### #????????# | | ?##""""""""""""" # # # ### #????????? | | ?#" " "" ! g # ## < ##????????? | | ?""" = % g ######???? | | #""" g ##??? | | ?""" @ #???? | | ?""" #???? | | #"" ##???? | | ?""" """"""""""""""""#####????? | | ?"" " """###############????????? | | ?#"" """ """""###??#??????????????#????? | | ??#"""""""" "#####?????#???????#??????????? | | ??##?#####"## "#?#???????????????????#??#???? | | ?????????#"?## "#??#?????##??????#???????????? | | ?????##??#"### "#??#?#???????????????????????? | | #?#??????#"?# "##?#????????????????##???????? | | ????#??????## "#????????????##??????????????? | | #???"??????# "#??????#???#?????????????????? | | #??????????### "##???#?????????#?????????????? | | ??????"??????# "##??#???#?????????????#??????? | | ????????????## ""#?#????????##?#???#?????????? | | #????????#"## ""#????#????##??????#?????????? | | ????????##"#"X ""#?????????#?????????#???????? | | ????????""""" "####????#????#?????????#????? | | ????????""""" X"""""?????#??##???#??#???????? | | ????????##"#"X "##"#????????????????????????? | | ?????????#?## X""""#??????#??#??????????????? | | ????????????## "##"#????????????????????????? | | ???#?????????#######???????????????????????????? | | ??????????????#????????????#???????????????????? | +----------------------------------------------------+ Best States ------------- Heat Dissipation 64 Energy Generation 21 Energy Capacity 325 Matter Stores 331 Matter Capacity 400 Sight Range 16 Terrain Scan Range 20 Terrain Scan Density 10 Additional Mass Support 6 EM Shielding 2 Armor Coverage 150 Propulsion Shielding 33 Melee Speed Boost 20 Evasion (%) 55 Targeting Accuracy 13 Target Analysis 5 Core Analysis 6 Recoil Reduction 4 Particle Charging 15 Defensive Hacking 10 Item Schematics ----------------- Combat Drone Bay | -6/Data Miner | Free Lgt. Regenerative Plating | -6/Data Miner | Free Cld. Gravmag System | -6/Data Miner | Free Imp. Matter Compressor | -6/Data Miner | Free Hvy. Proton Cannon | -6/Data Miner | Free Imp. Linear Gravjet | -6/Data Miner | Free Adv. Particle Charger | -6/Data Miner | Free Hardcell Cannon | -6/Data Miner | Free Adv. System Shield | -6/Data Miner | Free Quantum Capacitor | -6/Data Miner | Free Antigrav Array | -6/Data Miner | Free Cmb. Antigrav System | -6/Data Miner | Free Robot Schematics ------------------ A-15 Conveyor | -6/Data Miner | Free S-27 Virus | -6/Data Miner | Free B-60 Warrior | -6/Data Miner | Free Y-54 Guardian | -6/Data Miner | Free G-67 Veteran | -6/Data Miner | Free Fabricated ------------ Nothing Repaired ---------- Lgt. Armor Plating | 37% | -8/Materials Studied --------- Imp. Light Cannon | -8/Materials | Hacked Lgt. Treads | -8/Materials | Hacked Alien Tech Used ----------------- None Achievements -------------- Below Ew, Corruption Spacetime Is Relative Challenges ------------ None Game ------ Seed MyomerZipSaw Manual? 0 Play Time 01:28:21 Cumulative 61.3 hours Start 2026.01.15 @ 20:09:15 End 2026.01.16 @ 23:42:16 Sessions 4 Manual Loads 0 Difficulty Rogue Special Mode None Game No. 66 Rogue 66 Adventurer 0 Explorer 0 Win Type - Total 1 Types 1/0/0/0/0/0/0/0/0/0 Lore% 45 Gallery% 44 Achievement% 33 Wizard Run 0 Options --------- Layout 0 ASCII 0 Keyboard 0 Movement Arrows Keybinds 1 Fullscreen 1 Font 18/X11 Map View 76x50 Zoom Use 0% Tactical HUD 1 Map Filters NONE Filters NONE Steam 1 RUN: f43fbf77-6e00-4d0c-96b7-1dbf28b87a5b